bitfinex/quotes_BTCUSD_20240719
["timestamp","ask_amount","ask_price","bid_price","bid_amount"]
[1721380805938,0.156035,64088.0,64086.0,0.001913]
[1721380806208,0.156035,64088.0,64087.0,0.001]
[1721380806795,0.157035,64088.0,64087.0,0.002]
[1721380806998,0.157035,64088.0,64087.0,0.001]
[1721380809130,0.534705,64088.0,64087.0,0.001]
[1721380809928,0.222635,64088.0,64087.0,0.001]
[1721380810129,0.222635,64088.0,64087.0,0.0909]
[1721380810541,0.222635,64088.0,64087.0,0.0919]
[1721380812313,0.001,64088.0,64087.0,0.247937]
[1721380812516,0.001,64088.0,64087.0,0.0919]
[1721380814174,0.157035,64088.0,64087.0,0.0919]
[1721380814382,0.001,64088.0,64087.0,0.0919]
[1721380814589,0.157035,64088.0,64087.0,0.0919]
[1721380814798,0.9971736,64088.0,64087.0,0.002]
[1721380815416,1.38542674,64088.0,64087.0,0.002]
[1721380815620,1.46533876,64088.0,64087.0,0.002]
[1721380815834,1.38542674,64088.0,64087.0,0.002]
[1721380816035,1.48874102,64088.0,64087.0,0.002]
[1721380816445,1.48874102,64088.0,64087.0,0.001]
[1721380816662,1.48874102,64088.0,64086.0,0.000913]
[1721380816663,1.092262,64087.0,64086.0,0.000913]
[1721380816862,1.39055793,64087.0,64086.0,0.000913]
[1721380818508,1.39355793,64087.0,64086.0,0.000913]
[1721380818723,1.32336743,64087.0,64086.0,0.000913]
[1721380818923,1.39555302,64087.0,64086.0,0.000913]
[1721380819360,1.32536743,64087.0,64086.0,0.000913]
[1721380820383,1.39555302,64087.0,64086.0,0.000913]
[1721380820588,1.40386743,64087.0,64086.0,0.000913]
[1721380821022,1.558217,64087.0,64086.0,0.000913]
[1721380821293,1.62839896,64087.0,64086.0,0.000913]
[1721380821520,1.47404939,64087.0,64086.0,0.000913]
[1721380821937,1.47404941,64087.0,64086.0,0.000913]
[1721380824123,1.40386745,64087.0,64086.0,0.000913]
[1721380824326,2.06594245,64087.0,64086.0,0.000913]
[1721380824525,2.0669274,64087.0,64086.0,0.000913]
[1721380824723,2.1169274,64087.0,64086.0,0.000913]
[1721380824967,2.05720369,64087.0,64086.0,0.000913]
[1721380825099,2.23946782,64087.0,64086.0,0.000913]
[1721380825297,2.06392878,64087.0,64086.0,0.000913]
[1721380825558,2.24546805,64087.0,64086.0,0.000913]
[1721380825799,2.29546805,64087.0,64086.0,0.000913]
[1721380826013,2.30546805,64087.0,64086.0,0.000913]
[1721380826359,2.26330411,64087.0,64086.0,0.000913]
[1721380826568,2.27730411,64087.0,64086.0,0.000913]
[1721380826948,2.26630411,64087.0,64086.0,0.000913]
[1721380827347,2.13992878,64087.0,64086.0,0.000913]
[1721380828188,2.45200414,64087.0,64086.0,0.000913]
[1721380828402,2.48335031,64087.0,64086.0,0.000913]
[1721380829091,2.48335031,64087.0,64082.0,0.009174]
[1721380829092,0.05,64083.0,64082.0,1e-06]
[1721380829292,3.14247036,64083.0,64082.0,1e-06]
[1721380829494,3.24247036,64083.0,64082.0,1e-06]
[1721380830317,3.25347036,64083.0,64082.0,1e-06]
[1721380831286,3.2538426,64083.0,64082.0,1e-06]
[1721380831865,3.2678426,64083.0,64082.0,1e-06]
[1721380832227,3.2568426,64083.0,64082.0,1e-06]
[1721380832435,2.7199476,64083.0,64082.0,1e-06]
[1721380832639,2.65223089,64083.0,64082.0,1e-06]
[1721380833131,2.63823089,64083.0,64082.0,1e-06]
[1721380833329,2.65223089,64083.0,64082.0,1e-06]
[1721380833759,1.84013589,64083.0,64082.0,1e-06]
[1721380833969,1.95684919,64083.0,64082.0,1e-06]
[1721380834171,1.52804089,64083.0,64082.0,1e-06]
[1721380834372,1.10546784,64083.0,64082.0,1e-06]
[1721380834581,1.03544424,64083.0,64082.0,1e-06]
[1721380834981,1.02144424,64083.0,64082.0,1e-06]
[1721380835182,1.33353924,64083.0,64082.0,1e-06]
[1721380835411,1.02144424,64083.0,64082.0,1e-06]
[1721380835585,1.01171874,64083.0,64082.0,1e-06]
[1721380835969,1.02571874,64083.0,64082.0,1e-06]
[1721380836422,0.808237,64083.0,64082.0,1e-06]
[1721380836621,0.496142,64083.0,64082.0,1e-06]
[1721380837060,0.014,64083.0,64082.0,1e-06]
[1721380837221,0.156045,64084.0,64082.0,1e-06]
[1721380837437,0.156045,64084.0,64083.0,0.002794]
[1721380837617,0.312075,64088.0,64083.0,0.002794]
[1721380837818,0.156041,64086.0,64083.0,0.002794]
[1721380838459,0.005,64084.0,64083.0,0.002794]
[1721380838831,0.005,64084.0,64083.0,0.546036]
[1721380838832,0.009,64084.0,64083.0,0.546036]
[1721380839013,0.00083,64084.0,64083.0,0.543242]
[1721380839512,0.00083,64084.0,64083.0,0.0751]
[1721380839714,0.156875,64084.0,64083.0,0.0751]
[1721380840056,0.00083,64084.0,64083.0,0.0751]
[1721380841007,0.00183,64084.0,64083.0,0.0751]
[1721380841211,0.00683,64084.0,64083.0,0.0751]
[1721380841410,0.162875,64084.0,64083.0,0.0751]
[1721380841813,0.00183,64084.0,64083.0,0.0751]
[1721380842118,0.00283,64084.0,64083.0,0.0771]
[1721380842497,0.158875,64084.0,64083.0,0.0771]
[1721380843945,0.156875,64084.0,64083.0,0.0751]
[1721380844348,0.158875,64084.0,64083.0,0.0771]
[1721380844923,0.157875,64084.0,64083.0,0.0751]
[1721380845122,0.159875,64084.0,64083.0,0.0771]
[1721380845359,0.157875,64084.0,64083.0,0.0771]
[1721380845740,0.156047,64083.0,64082.0,1e-06]
[1721380846484,0.18767976,64083.0,64082.0,1e-06]
[1721380846686,0.00183,64084.0,64082.0,1e-06]
[1721380846898,0.00183,64084.0,64083.0,0.002794]
[1721380847096,0.00083,64084.0,64083.0,0.002794]
[1721380847721,0.156875,64084.0,64083.0,0.002794]
[1721380847920,0.157875,64084.0,64083.0,0.002794]
[1721380848119,0.158875,64084.0,64083.0,0.004794]
[1721380848320,0.158875,64084.0,64083.0,0.002]
[1721380848784,0.1441,64083.0,64082.0,1e-06]
[1721380848979,1.39081374,64083.0,64082.0,1e-06]
[1721380849269,0.841937,64083.0,64082.0,1e-06]
[1721380849809,0.00283,64084.0,64082.0,0.076901]
[1721380849810,0.00183,64084.0,64082.0,0.076901]
[1721380850022,0.00183,64084.0,64083.0,0.002794]
[1721380850219,0.00083,64084.0,64083.0,0.002794]
[1721380850825,0.156875,64084.0,64083.0,0.002794]
[1721380851190,0.15768718,64084.0,64083.0,0.002794]
[1721380851366,0.00064218,64084.0,64083.0,0.002794]
[1721380851741,0.00164218,64084.0,64083.0,0.002794]
[1721380852734,0.00564218,64084.0,64083.0,0.002794]
[1721380853236,0.00164218,64084.0,64083.0,0.002794]
[1721380853639,0.00264218,64084.0,64083.0,0.004794]
[1721380854035,0.00264218,64084.0,64083.0,0.002]
[1721380854240,0.00264218,64084.0,64083.0,0.004794]
[1721380854447,0.00264218,64084.0,64083.0,0.002]
[1721380855321,0.53567718,64084.0,64083.0,0.002]
[1721380855714,0.78286718,64084.0,64083.0,0.002]
[1721380857169,0.78286718,64084.0,64083.0,0.0825]
[1721380857170,0.47077718,64084.0,64083.0,0.0825]
[1721380857386,0.00264218,64084.0,64083.0,0.1437]
[1721380857783,0.00264218,64084.0,64083.0,0.0825]
[1721380860153,0.00264218,64084.0,64083.0,0.1724]
[1721380861542,0.47077718,64084.0,64083.0,0.1724]
[1721380862283,0.15868718,64084.0,64083.0,0.1724]
[1721380864397,0.00264218,64084.0,64083.0,0.1724]
[1721380865128,1.23715718,64084.0,64083.0,0.002]
[1721380865405,0.54200055,64084.0,64083.0,0.002]
[1721380866299,0.48050055,64084.0,64083.0,0.002]
[1721380866547,0.01236555,64084.0,64083.0,0.0787]
[1721380866728,0.00264218,64084.0,64083.0,1.00233233]
[1721380866876,0.00264218,64084.0,64083.0,1.31130679]
[1721380867081,0.00264218,64084.0,64083.0,1.53868853]
[1721380867317,0.00264218,64084.0,64083.0,1.61830469]
[1721380867478,0.00164218,64084.0,64083.0,1.66630469]
[1721380867678,0.00083,64089.0,64088.0,1.282045]
[1721380867908,0.00083,64089.0,64088.0,1.54932674]
[1721380868310,0.00083,64089.0,64088.0,1.18725674]
[1721380869223,0.00183,64089.0,64088.0,1.18725674]
[1721380870429,0.00283,64089.0,64088.0,1.19825674]
[1721380874967,0.00283,64089.0,64088.0,0.0877]
[1721380875220,0.00283,64089.0,64088.0,0.1009]
[1721380875221,0.158863,64089.0,64088.0,0.1009]
[1721380876143,0.00283,64089.0,64088.0,0.1009]
[1721380877072,0.00283,64089.0,64088.0,0.708905]
[1721380877279,0.00283,64089.0,64088.0,1.19835674]
[1721380877499,0.00283,64089.0,64088.0,1.51042674]
[1721380878708,0.00283,64089.0,64088.0,1.87249674]
[1721380880124,0.00283,64089.0,64088.0,2.00719674]
[1721380880274,0.00283,64089.0,64088.0,1.95719674]
[1721380880497,0.00283,64089.0,64088.0,2.00719674]
[1721380881300,0.00283,64089.0,64088.0,1.95719674]
[1721380882141,0.00283,64089.0,64088.0,1.58102674]
[1721380883062,0.00283,64089.0,64088.0,1.64582674]
[1721380883264,0.00283,64089.0,64088.0,1.69582674]
[1721380883473,0.00283,64089.0,64088.0,1.96700105]
[1721380883672,0.00283,64089.0,64088.0,2.01700105]
[1721380884676,0.00283,64089.0,64088.0,2.14659417]
[1721380887803,0.00283,64089.0,64088.0,2.14659297]
[1721380889545,0.00283,64089.0,64088.0,2.09659297]
[1721380889915,0.00283,64089.0,64088.0,1.51433105]
[1721380893488,0.00283,64089.0,64088.0,1.28973105]
[1721380893693,0.00283,64089.0,64088.0,1.51433105]
[1721380894593,0.06873,64089.0,64088.0,1.51433105]
[1721380895757,0.00283,64089.0,64088.0,1.51433105]
[1721380896435,0.00283,64089.0,64088.0,1.64393554]
[1721380897095,0.00283,64089.0,64088.0,1.51433105]
[1721380897295,0.00283,64089.0,64088.0,1.64393556]
[1721380899578,0.00283,64089.0,64088.0,1.72453556]
[1721380899783,0.00283,64089.0,64088.0,1.77453556]
[1721380900207,0.00283,64089.0,64088.0,1.72453556]
[1721380900411,0.00283,64089.0,64088.0,1.72453175]
[1721380901306,0.00283,64089.0,64088.0,1.64393175]
[1721380902668,0.00283,64089.0,64088.0,0.2966357]
[1721380902850,0.06453,64089.0,64088.0,0.011]
[1721380903053,0.14193,64089.0,64088.0,0.011]
[1721380904099,0.14093,64089.0,64088.0,0.011]
[1721380904300,0.14193,64089.0,64088.0,0.018]
[1721380904503,0.14193,64089.0,64088.0,0.174035]
[1721380904851,0.14293,64089.0,64088.0,0.181035]
[1721380904959,0.14193,64089.0,64088.0,0.170035]
[1721380905175,0.14193,64089.0,64088.0,0.482105]
[1721380905368,0.14293,64089.0,64088.0,0.712705]
[1721380905725,0.14193,64089.0,64088.0,0.706705]
[1721380906142,0.14093,64089.0,64088.0,0.386635]
[1721380906721,0.921095,64089.0,64088.0,0.006]
[1721380908350,0.609029,64089.0,64088.0,0.006]
[1721380908897,0.452996,64089.0,64088.0,0.006]
[1721380909105,0.14093,64089.0,64088.0,0.474105]
[1721380909253,0.14093,64089.0,64088.0,0.006]
[1721380910033,0.14093,64089.0,64088.0,0.162035]
[1721380912544,0.14093,64089.0,64088.0,0.006]
[1721380913208,0.921095,64089.0,64088.0,0.006]
[1721380915386,1.38754274,64089.0,64088.0,0.006]
[1721380917368,0.780212,64085.0,64084.0,0.000913]
[1721380917567,0.926312,64085.0,64084.0,0.000913]
[1721380919483,0.928312,64085.0,64084.0,0.000913]
[1721380919888,0.931312,64085.0,64084.0,0.000913]
[1721380920095,0.929312,64085.0,64084.0,0.000913]
[1721380920412,0.926312,64085.0,64084.0,0.000913]
[1721380920616,0.928312,64085.0,64084.0,0.000913]
[1721380920764,0.931312,64085.0,64084.0,0.000913]
[1721380924863,0.619227,64085.0,64084.0,0.000913]
[1721380926059,0.616227,64085.0,64084.0,0.000913]
[1721380926467,0.618227,64085.0,64084.0,0.000913]
[1721380927141,0.930312,64085.0,64084.0,0.000913]
[1721380927319,0.929312,64085.0,64084.0,0.000913]
[1721380927731,0.928312,64085.0,64084.0,0.000913]
[1721380928028,0.930312,64085.0,64084.0,0.000913]
[1721380929304,0.928312,64085.0,64084.0,0.000913]
[1721380929509,0.926312,64085.0,64084.0,0.000913]
[1721380929708,0.929312,64085.0,64084.0,0.000913]
[1721380930771,0.617227,64085.0,64084.0,0.000913]
[1721380931014,0.305142,64085.0,64084.0,0.000913]
[1721380931182,0.224542,64085.0,64084.0,0.000913]
[1721380931808,0.003,64085.0,64084.0,0.469048]
[1721380932540,0.00083,64089.0,64086.0,0.15604]
[1721380932774,0.00083,64089.0,64088.0,0.156035]
[1721380933030,0.00083,64089.0,64088.0,0.468105]
[1721380934288,0.00083,64089.0,64088.0,0.158035]
[1721380935534,0.00083,64089.0,64088.0,0.002]
[1721380935690,0.14633,64089.0,64088.0,0.002]
[1721380938079,0.302363,64089.0,64088.0,0.002]
[1721380938434,0.614429,64089.0,64088.0,0.002]
[1721380938841,0.302363,64089.0,64088.0,0.002]
[1721380941062,0.14633,64089.0,64088.0,0.002]
[1721380941267,0.302363,64089.0,64088.0,0.002]
[1721380941476,0.614429,64089.0,64088.0,0.002]
[1721380941672,0.926495,64089.0,64088.0,0.002]
[1721380941943,1.40266558,64089.0,64088.0,0.002]
[1721380942727,0.780212,64085.0,64084.0,0.002913]
[1721380942942,0.78993484,64085.0,64084.0,0.002913]
[1721380943230,0.92753484,64085.0,64084.0,0.002913]
[1721380944279,0.917812,64085.0,64084.0,0.002913]
[1721380944493,0.92753556,64085.0,64084.0,0.002913]
[1721380945107,0.93053556,64085.0,64084.0,0.002913]
[1721380947481,0.93053554,64085.0,64084.0,0.002913]
[1721380950832,0.93053551,64085.0,64084.0,0.002913]
[1721380951793,1.08491725,64085.0,64084.0,0.002913]
[1721380952020,1.39700225,64085.0,64084.0,0.002913]
[1721380952211,1.70908725,64085.0,64084.0,0.002913]
[1721380953302,1.80908725,64085.0,64084.0,0.002913]
[1721380953505,1.85908725,64085.0,64084.0,0.002913]
[1721380953718,1.84936374,64085.0,64084.0,0.002913]
[1721380953867,1.96343841,64085.0,64084.0,0.002913]
[1721380954071,2.00371331,64085.0,64084.0,0.002913]
[1721380954271,2.01343858,64085.0,64084.0,0.002913]
[1721380954475,1.85908901,64085.0,64084.0,0.002913]
[1721380954935,1.80908901,64085.0,64084.0,0.002913]
[1721380955537,1.80608901,64085.0,64084.0,0.002913]
[1721380955674,1.81708901,64085.0,64084.0,0.002913]
[1721380956188,1.80608901,64085.0,64084.0,0.002913]
[1721380956587,1.82008901,64085.0,64084.0,0.002913]
[1721380956786,1.81036374,64085.0,64084.0,0.002913]
[1721380956978,1.82008898,64085.0,64084.0,0.002913]
[1721380959458,1.87008898,64085.0,64084.0,0.002913]
[1721380959660,1.82008898,64085.0,64084.0,0.002913]
[1721380960283,1.82008888,64085.0,64084.0,0.002913]
[1721380960489,1.19591888,64085.0,64084.0,0.002913]
[1721380960691,0.69690874,64085.0,64084.0,0.002913]
[1721380961655,0.68290874,64085.0,64084.0,0.002913]
[1721380961903,0.69290874,64085.0,64084.0,0.002913]
[1721380962898,0.63250874,64085.0,64084.0,0.002913]
[1721380963251,0.94459374,64085.0,64084.0,0.002913]
[1721380967676,0.01,64085.0,64084.0,0.002913]
[1721380969078,0.166042,64085.0,64084.0,0.002913]
[1721380971132,0.478127,64085.0,64084.0,0.002913]
[1721380971293,0.478957,64085.0,64084.0,0.002913]
[1721380972200,0.621257,64085.0,64084.0,0.002913]
[1721380972398,1.15122632,64085.0,64084.0,0.002913]
[1721380972810,1.09744778,64085.0,64084.0,0.002913]
[1721380973021,1.47967225,64085.0,64084.0,0.002913]
[1721380973385,1.40953278,64085.0,64084.0,0.002913]
[1721380973712,1.82161778,64085.0,64084.0,0.002913]
[1721380973914,1.9385169,64085.0,64084.0,0.002913]
[1721380974138,2.09286647,64085.0,64084.0,0.002913]
[1721380974516,1.97596735,64085.0,64084.0,0.002913]
[1721380976020,1.96624331,64085.0,64084.0,0.002913]
[1721380976226,2.02596841,64085.0,64084.0,0.002913]
[1721380976375,2.02596841,64085.0,64084.0,0.002813]
[1721380978900,1.87161884,64085.0,64084.0,0.002813]
[1721380979232,1.86189374,64085.0,64084.0,0.002813]
[1721380979435,1.87161886,64085.0,64084.0,0.002813]
[1721380981048,1.87161886,64085.0,64084.0,0.000813]
[1721380981577,1.82089374,64085.0,64084.0,0.001813]
[1721380981781,1.88061929,64085.0,64084.0,0.001813]
[1721380981988,2.03496886,64085.0,64084.0,0.001813]
[1721380984343,2.12486886,64085.0,64084.0,0.001813]
[1721380984912,2.46711202,64085.0,64084.0,0.001813]
[1721380985107,2.60739932,64085.0,64084.0,0.001813]
[1721380985536,2.59739932,64085.0,64084.0,0.001813]
[1721380985735,2.58839932,64085.0,64084.0,0.000813]
[1721380985912,2.60239932,64085.0,64084.0,0.000813]
[1721380986117,2.46211202,64085.0,64084.0,0.000813]
[1721380986345,2.96211202,64085.0,64084.0,0.000813]
[1721380986596,0.05,64076.0,64074.0,0.009174]
[1721380986787,0.82470052,64076.0,64074.0,0.009174]
[1721380986988,1.87657844,64076.0,64074.0,0.009174]
[1721380987143,1.97657844,64076.0,64074.0,0.009174]
[1721380988165,1.97657932,64076.0,64074.0,0.009174]
[1721380988376,1.8750884,64076.0,64074.0,0.009174]
[1721380988784,1.8250884,64076.0,64074.0,0.009174]
[1721380989370,1.8750884,64076.0,64074.0,0.009174]
[1721380989783,1.8890884,64076.0,64074.0,0.009174]
[1721380989989,2.04343797,64076.0,64074.0,0.009174]
[1721380991295,1.87936174,64076.0,64074.0,0.009174]
[1721380991633,1.8890884,64076.0,64074.0,0.009174]
[1721380992016,1.8750884,64076.0,64074.0,0.009174]
[1721380992221,1.8610884,64076.0,64074.0,0.009174]
[1721380992361,1.97795275,64076.0,64074.0,0.009174]
[1721380992746,1.99195275,64076.0,64074.0,0.009174]
[1721380993103,1.8610884,64076.0,64074.0,0.009174]
[1721380993463,1.8750884,64076.0,64074.0,0.009174]
[1721380993674,1.8890884,64076.0,64074.0,0.009174]
[1721380994102,1.9030884,64076.0,64074.0,0.009174]
[1721380994302,1.89336174,64076.0,64074.0,0.009174]
[1721380994512,1.90308844,64076.0,64074.0,0.009174]
[1721380995047,1.85308844,64076.0,64074.0,0.009174]
[1721380995250,1.90308844,64076.0,64074.0,0.009174]
[1721380995822,1.91235695,64076.0,64074.0,0.009174]
[1721380997428,1.90263025,64076.0,64074.0,0.009174]
[1721380997597,1.91235694,64076.0,64074.0,0.009174]
[1721380997810,2.06670652,64076.0,64074.0,0.009174]
[1721380998166,1.86235696,64076.0,64074.0,0.009174]
[1721380998372,1.91235696,64076.0,64074.0,0.009174]
[1721380998789,1.84835696,64076.0,64074.0,0.009174]
[1721380999193,1.97919708,64076.0,64074.0,0.009174]
[1721380999851,1.95119708,64076.0,64074.0,0.009174]
[1721381000253,1.96519708,64076.0,64074.0,0.009174]
[1721381000667,1.84835696,64076.0,64074.0,0.009174]
[1721381000871,1.84835665,64076.0,64074.0,0.009174]
[1721381001067,1.94181477,64076.0,64074.0,0.009174]
[1721381001470,1.84835665,64076.0,64074.0,0.009174]
[1721381002151,1.94180746,64076.0,64074.0,0.009174]
[1721381002836,2.09615703,64076.0,64074.0,0.009174]
[1721381003172,1.94180746,64076.0,64074.0,0.009174]
[1721381004093,1.93208106,64076.0,64074.0,0.009174]
[1721381004310,1.94180758,64076.0,64074.0,0.009174]
[1721381006092,1.84835677,64076.0,64074.0,0.009174]
[1721381006242,1.9417934,64076.0,64074.0,0.009174]
[1721381006445,1.84835677,64076.0,64074.0,0.009174]
[1721381006668,1.94179417,64076.0,64074.0,0.009174]
[1721381007132,1.84835677,64076.0,64074.0,0.009174]
[1721381007309,2.0830164,64076.0,64074.0,0.009174]
[1721381007775,1.92866683,64076.0,64074.0,0.009174]
[1721381010996,1.88863025,64076.0,64074.0,0.009174]
[1721381011199,1.92846068,64076.0,64074.0,0.009174]
[1721381011361,2.24058968,64076.0,64074.0,0.009174]
[1721381011568,2.26358968,64076.0,64074.0,0.009174]
[1721381011814,2.4177434,64076.0,64074.0,0.009174]
[1721381012421,2.4037434,64076.0,64074.0,0.009174]
[1721381013176,2.4177434,64076.0,64074.0,0.009174]
[1721381013630,2.39402352,64076.0,64074.0,0.009174]
[1721381013829,2.417752,64076.0,64074.0,0.009174]
[1721381014325,1.906437,64075.0,64074.0,0.009174]
[1721381014535,2.29036192,64075.0,64074.0,0.009174]
[1721381015514,2.26471874,64075.0,64074.0,0.00284147]
[1721381015692,1.907464,64074.0,64073.0,0.009174]
[1721381015901,2.35665238,64074.0,64073.0,0.009174]
[1721381016146,1.519419,64065.0,64064.0,0.009163]
[1721381016368,1.90415781,64065.0,64064.0,0.009163]
[1721381016785,1.90408752,64065.0,64064.0,0.009163]
[1721381017939,1.91808752,64065.0,64064.0,0.009163]
[1721381018192,2.61855152,64065.0,64064.0,0.009163]
[1721381018343,2.79590109,64065.0,64064.0,1e-08]
[1721381018543,2.79590109,64065.0,64051.0,0.002]
[1721381018544,1.794009,64061.0,64051.0,0.002]
[1721381018743,2.20167752,64061.0,64051.0,0.002]
[1721381019007,2.66822909,64061.0,64051.0,0.002]
[1721381019948,2.63757276,64061.0,64051.0,0.002]
[1721381020153,2.68193048,64061.0,64051.0,0.002]
[1721381020395,2.69593048,64061.0,64051.0,0.002]
[1721381022054,1.599407,64052.0,64051.0,0.002]
[1721381022275,1.95341919,64052.0,64051.0,0.002]
[1721381022425,2.02020332,64052.0,64051.0,0.002]
[1721381022632,1.90341919,64052.0,64051.0,0.002]
[1721381022835,1.95341919,64052.0,64051.0,0.002]
[1721381023245,2.10776957,64052.0,64051.0,0.002]
[1721381023586,2.11876957,64052.0,64051.0,0.002]
[1721381023885,2.05776957,64052.0,64051.0,0.002]
[1721381024024,2.12176957,64052.0,64051.0,0.002]
[1721381024230,2.43401557,64052.0,64051.0,0.002]
[1721381024455,1.282897,64044.0,64043.0,0.009174]
[1721381024684,1.631895,64044.0,64043.0,0.009174]
[1721381024817,1.41961,64044.0,64043.0,0.009174]
[1721381025223,1.35711,64044.0,64043.0,0.009174]
[1721381025864,1.683395,64044.0,64043.0,0.009174]
[1721381026066,1.787295,64044.0,64043.0,0.009174]
[1721381026274,1.9276449,64044.0,64043.0,0.009174]
[1721381026501,1.9776449,64044.0,64043.0,0.009174]
[1721381026704,1.9916449,64044.0,64043.0,0.009174]
[1721381026903,2.0056449,64044.0,64043.0,0.009174]
[1721381027366,1.48901033,64044.0,64043.0,0.009174]
[1721381027674,1.46101033,64044.0,64043.0,0.009174]
[1721381027863,1.77329533,64044.0,64043.0,0.009174]
[1721381028228,1.75929533,64044.0,64043.0,0.009174]
[1721381028637,1.77329533,64044.0,64043.0,0.009174]
[1721381028836,1.9276449,64044.0,64043.0,0.009174]
[1721381029050,1.9136449,64044.0,64043.0,0.009174]
[1721381029258,1.51101033,64044.0,64043.0,0.009174]
[1721381029460,1.47501034,64044.0,64043.0,0.009174]
[1721381029623,1.78729534,64044.0,64043.0,0.009174]
[1721381029826,1.77329534,64044.0,64043.0,0.009174]
[1721381030451,1.82329534,64044.0,64043.0,0.009174]
[1721381030645,1.99164491,64044.0,64043.0,0.009174]
[1721381030867,1.94164491,64044.0,64043.0,0.009174]
[1721381031208,1.94164491,64044.0,64031.0,0.002]
[1721381031209,1.0932,64032.0,64031.0,0.002]
[1721381031361,1.24758174,64032.0,64031.0,0.002]
[1721381031560,1.34758174,64032.0,64031.0,0.0848]
[1721381031775,1.03523874,64032.0,64031.0,0.0848]
[1721381031979,0.72289574,64032.0,64031.0,0.0848]
[1721381032343,0.72289574,64032.0,64031.0,0.1448]
[1721381032767,0.1,64032.0,64031.0,0.1448]
[1721381032973,0.156169,64033.0,64032.0,0.1413]
[1721381033196,1.03522674,64033.0,64032.0,0.1413]
[1721381033791,0.72288874,64033.0,64032.0,0.1413]
[1721381034889,1.03522674,64033.0,64032.0,0.1413]
[1721381035108,1.04822674,64033.0,64032.0,0.1413]
[1721381035680,1.06022674,64033.0,64032.0,0.1413]
[1721381035885,1.10493745,64033.0,64032.0,0.1413]
[1721381036420,1.06022674,64033.0,64032.0,0.1413]
[1721381037235,1.06022674,64033.0,64032.0,0.0772]
[1721381037725,1.37256474,64033.0,64032.0,0.0772]
[1721381037904,1.06022674,64033.0,64032.0,0.0772]
[1721381040414,1.06022674,64033.0,64032.0,0.1671]
[1721381042975,1.03522674,64033.0,64032.0,0.0772]
[1721381043133,1.03522674,64033.0,64031.0,0.002]
[1721381043134,0.468514,64032.0,64031.0,0.002]
[1721381043286,1.34758174,64032.0,64031.0,0.002]
[1721381043486,1.18958831,64032.0,64031.0,0.002]
[1721381043710,1.34758174,64032.0,64031.0,0.002]
[1721381044336,1.43661445,64032.0,64031.0,0.002]
[1721381044547,1.35731445,64032.0,64031.0,0.002]
[1721381045175,1.36831445,64032.0,64031.0,0.002]
[1721381045693,1.37531445,64032.0,64031.0,0.002]
[1721381045912,1.52966402,64032.0,64031.0,0.002]
[1721381046115,1.54066402,64032.0,64031.0,0.002]
[1721381046713,1.38631445,64032.0,64031.0,0.002]
[1721381047501,1.38631501,64032.0,64031.0,0.002]
[1721381055806,1.38631501,64032.0,64031.0,0.142]
[1721381055995,1.38631501,64032.0,64031.0,0.0772]
[1721381056808,1.38631501,64032.0,64031.0,0.002]
[1721381057075,1.37658174,64032.0,64031.0,0.002]
[1721381057248,1.38631435,64032.0,64031.0,0.002]
[1721381057604,1.37658174,64032.0,64031.0,0.002]
[1721381057809,1.38631439,64032.0,64031.0,0.002]
[1721381058611,0.03873265,64032.0,64031.0,0.2329]
[1721381058800,0.029,64032.0,64031.0,0.2329]
[1721381059440,0.31232,64037.0,64031.0,0.1534]
[1721381059653,0.164113,64036.0,64035.0,0.0756]
[1721381059857,0.156152,64040.0,64036.0,0.0756]
[1721381060054,0.16411261,64039.0,64036.0,0.0756]
[1721381060272,0.15438174,64039.0,64038.0,0.0899]
[1721381060899,0.15615,64041.0,64039.0,0.0798]
[1721381061106,0.16411242,64040.0,64039.0,0.0798]
[1721381061296,0.42026442,64040.0,64039.0,0.0798]
[1721381062817,0.42426442,64040.0,64039.0,0.0798]
[1721381063478,0.41453374,64040.0,64039.0,0.0798]
[1721381063677,0.42426451,64040.0,64039.0,0.0798]
[1721381064295,0.42926451,64040.0,64039.0,0.0798]
[1721381065351,0.74156851,64040.0,64039.0,0.0798]
[1721381066847,0.74156852,64040.0,64039.0,0.0798]
[1721381067152,1.05387252,64040.0,64039.0,0.0798]
[1721381067556,0.74156852,64040.0,64039.0,0.0798]
[1721381068796,0.156159,64038.0,64036.0,0.0819]
[1721381068994,0.1,64037.0,64036.0,0.0819]
[1721381071831,0.256159,64037.0,64036.0,0.0819]
[1721381072268,1.03617874,64037.0,64036.0,0.0819]
[1721381072423,0.468493,64035.0,64034.0,0.0899]
[1721381072785,0.156167,64034.0,64033.0,0.0788]
[1721381073195,0.468501,64034.0,64033.0,0.0788]
[1721381075632,0.468501,64034.0,64033.0,0.0808]
[1721381076837,0.468501,64034.0,64033.0,0.0828]
[1721381077200,0.468514,64032.0,64031.0,0.002]
[1721381077408,0.468514,64032.0,64031.0,0.0919]
[1721381077632,0.780857,64032.0,64031.0,0.0919]
[1721381078970,0.156171,64032.0,64031.0,0.0919]
[1721381079142,0.156171,64032.0,64031.0,0.0929]
[1721381079751,0.468514,64032.0,64031.0,0.0929]
[1721381080359,0.156168,64034.0,64032.0,0.002794]
[1721381080998,0.156168,64034.0,64033.0,0.1376]
[1721381081454,0.158168,64034.0,64033.0,0.1376]
[1721381082063,0.156168,64034.0,64033.0,0.1376]
[1721381082399,0.158168,64034.0,64033.0,0.075]
[1721381082733,0.158168,64034.0,64031.0,0.0929]
[1721381082734,0.15617,64033.0,64032.0,0.002794]
[1721381082861,0.15617,64033.0,64032.0,0.0766]
[1721381083456,0.002,64034.0,64031.0,0.002]
[1721381083457,0.156171,64032.0,64031.0,0.002]
[1721381083842,0.924157,64032.0,64031.0,0.002]
[1721381084720,0.843457,64032.0,64031.0,0.0919]
[1721381086233,0.85318841,64032.0,64031.0,0.0929]
[1721381086788,0.85318841,64032.0,64031.0,0.0919]
[1721381087216,0.85818841,64032.0,64031.0,0.0919]